[Event "*** SCC Grand Prix: Titled Tuesday Blitz"]
[Site "Chess.com"]
[Date "2020.08.25"]
[Round "3"]
[White "GelmanAlexander"]
[Black "Alexander_Moskalenko"]
[Result "0-1"]
[WhiteElo "2543"]
[BlackElo "2780"]
[TimeControl "180+1"]
[EndTime "10:31:09 PDT"]
[Termination "Alexander_Moskalenko won by resignation"]

1. d4 {[%clk 0:03:00.9]} 1... c6 {[%clk 0:03:00.9]} 2. Nc3 {[%clk 0:03:00.9]}
2... d5 {[%clk 0:03:00.1]} 3. Bf4 {[%clk 0:03:00.9]} 3... Bf5 {[%clk 0:02:50.8]}
4. f3 {[%clk 0:03:01]} 4... e6 {[%clk 0:02:36.4]} 5. e4 {[%clk 0:03:00.2]} 5...
Bg6 {[%clk 0:02:34.4]} 6. h4 {[%clk 0:03:00.4]} 6... h6 {[%clk 0:02:33.1]} 7. h5
{[%clk 0:02:51.9]} 7... Bh7 {[%clk 0:02:33]} 8. Bd3 {[%clk 0:02:52.5]} 8... Nd7
{[%clk 0:02:27]} 9. Nge2 {[%clk 0:02:51.8]} 9... Bb4 {[%clk 0:02:18.3]} 10. a3
{[%clk 0:02:50.8]} 10... Ba5 {[%clk 0:02:18.2]} 11. Qd2 {[%clk 0:02:49.5]} 11...
Ne7 {[%clk 0:02:17.6]} 12. O-O-O {[%clk 0:02:40.3]} 12... b5 {[%clk 0:02:11.2]}
13. Qe3 {[%clk 0:02:31.7]} 13... Nf6 {[%clk 0:01:59.1]} 14. g4 {[%clk
0:02:16.6]} 14... b4 {[%clk 0:01:21.6]} 15. axb4 {[%clk 0:02:15.9]} 15... Bxb4
{[%clk 0:01:22.5]} 16. g5 {[%clk 0:02:12.4]} 16... hxg5 {[%clk 0:01:22.5]} 17.
Bxg5 {[%clk 0:02:12.6]} 17... Neg8 {[%clk 0:01:07.6]} 18. e5 {[%clk 0:02:06.2]}
18... Qa5 {[%clk 0:01:05.2]} 19. exf6 {[%clk 0:02:05.2]} 19... gxf6 {[%clk
0:01:06.1]} 20. Bf4 {[%clk 0:01:54.8]} 20... Ne7 {[%clk 0:01:06.4]} 21. Bxh7
{[%clk 0:01:52.8]} 21... Rxh7 {[%clk 0:01:07.3]} 22. Nb1 {[%clk 0:01:26.4]}
22... Kd7 {[%clk 0:01:00.8]} 23. c3 {[%clk 0:01:25.4]} 23... Bd6 {[%clk
0:01:00.4]} 24. Bxd6 {[%clk 0:01:24.7]} 24... Kxd6 {[%clk 0:01:01.3]} 25. Qf4+
{[%clk 0:01:24.2]} 25... Kd7 {[%clk 0:01:01.4]} 26. Qxf6 {[%clk 0:01:24.5]}
26... Nf5 {[%clk 0:00:58.8]} 27. Rdg1 {[%clk 0:01:16.9]} 27... Qb5 {[%clk
0:00:50]} 28. Ng3 {[%clk 0:01:15.5]} 28... Rb8 {[%clk 0:00:47.3]} 29. Rh2 {[%clk
0:01:11.4]} 29... Nd6 {[%clk 0:00:44.4]} 30. h6 {[%clk 0:00:51.3]} 30... Rg8
{[%clk 0:00:36.7]} 31. Qe5 {[%clk 0:00:44.6]} 31... Rg6 {[%clk 0:00:33.8]} 32.
Qe3 {[%clk 0:00:42.4]} 32... Qb8 {[%clk 0:00:29.6]} 33. Ne2 {[%clk 0:00:40.3]}
33... Nc4 {[%clk 0:00:29.7]} 34. Qd3 {[%clk 0:00:31]} 34... Qxb2+ {[%clk
0:00:28.5]} 35. Kd1 {[%clk 0:00:31.6]} 35... Rxg1+ {[%clk 0:00:10.8]} 36. Nxg1
{[%clk 0:00:32.5]} 36... Qxh2 {[%clk 0:00:10.6]} 37. Qxh7 {[%clk 0:00:32.1]}
37... Qxg1+ {[%clk 0:00:10.7]} 38. Ke2 {[%clk 0:00:31.6]} 38... Ke7 {[%clk
0:00:08.4]} 39. Qg7 {[%clk 0:00:21.1]} 39... Qxb1 {[%clk 0:00:07.5]} 40. h7
{[%clk 0:00:21.1]} 40... Qc2+ {[%clk 0:00:07.9]} 41. Ke1 {[%clk 0:00:20.9]}
41... Qd2+ {[%clk 0:00:07.5]} 42. Kf1 {[%clk 0:00:21.5]} 42... Ne3+ {[%clk
0:00:08.1]} 43. Kg1 {[%clk 0:00:22.1]} 43... Nf5 {[%clk 0:00:04.9]} 44. Qg4
{[%clk 0:00:15.8]} 44... Qh6 {[%clk 0:00:03.9]} 45. Qg8 {[%clk 0:00:14.8]} 45...
Qe3+ {[%clk 0:00:03.5]} 46. Kg2 {[%clk 0:00:15.1]} 46... Nh4+ {[%clk 0:00:02.8]}
47. Kh3 {[%clk 0:00:14.8]} 47... Ng6 {[%clk 0:00:03.7]} 48. Qxg6 {[%clk
0:00:13.5]} 48... fxg6 {[%clk 0:00:04.6]} 49. h8=Q {[%clk 0:00:14.1]} 49...
Qxf3+ {[%clk 0:00:05.1]} 50. Kh2 {[%clk 0:00:14.7]} 50... Qf4+ {[%clk
0:00:05.3]} 51. Kg2 {[%clk 0:00:14.9]} 51... Qf7 {[%clk 0:00:04.5]} 52. Qe5
{[%clk 0:00:14.5]} 52... Qf5 {[%clk 0:00:04.3]} 53. Qc7+ {[%clk 0:00:15]} 53...
Kf6 {[%clk 0:00:04.9]} 54. Qxc6 {[%clk 0:00:15.9]} 54... Kg5 {[%clk 0:00:05.2]}
55. Qb7 {[%clk 0:00:15.2]} 55... Qc2+ {[%clk 0:00:05.7]} 56. Kg3 {[%clk
0:00:15.8]} 56... Qxc3+ {[%clk 0:00:06.3]} 57. Kf2 {[%clk 0:00:16.4]} 57...
Qxd4+ {[%clk 0:00:06.7]} 58. Kg2 {[%clk 0:00:17]} 58... Qe4+ {[%clk 0:00:07]}
59. Kg3 {[%clk 0:00:16.8]} 59... Kf6 {[%clk 0:00:07.9]} 60. Qxa7 {[%clk
0:00:16.9]} 60... g5 {[%clk 0:00:07.3]} 61. Qb8 {[%clk 0:00:17.4]} 61... Qe5+
{[%clk 0:00:07.6]} 0-1

[Event "*** SCC Grand Prix: Titled Tuesday Blitz"]
[Site "Chess.com"]
[Date "2020.08.25"]
[Round "3"]
[White "Rozum_Ivan"]
[Black "SamuelGhimpu2003"]
[Result "0-1"]
[WhiteElo "2689"]
[BlackElo "2534"]
[TimeControl "180+1"]
[EndTime "10:31:09 PDT"]
[Termination "SamuelGhimpu2003 won on time"]

1. d4 {[%clk 0:03:00.9]} 1... Nf6 {[%clk 0:03:00]} 2. Nf3 {[%clk 0:03:00.6]}
2... e6 {[%clk 0:02:59.9]} 3. c4 {[%clk 0:02:58.9]} 3... d5 {[%clk 0:02:59.3]}
4. g3 {[%clk 0:02:57.5]} 4... Be7 {[%clk 0:02:58.9]} 5. Bg2 {[%clk 0:02:56.3]}
5... O-O {[%clk 0:02:59.4]} 6. O-O {[%clk 0:02:56.1]} 6... dxc4 {[%clk
0:02:59.6]} 7. Qc2 {[%clk 0:02:52.5]} 7... a6 {[%clk 0:02:59.6]} 8. a4 {[%clk
0:02:52.8]} 8... Bd7 {[%clk 0:02:58.6]} 9. Rd1 {[%clk 0:02:51.4]} 9... Bc6
{[%clk 0:02:56.5]} 10. Nc3 {[%clk 0:02:51.1]} 10... Bxf3 {[%clk 0:02:56.5]} 11.
Bxf3 {[%clk 0:02:52]} 11... Nc6 {[%clk 0:02:57.3]} 12. Bxc6 {[%clk 0:02:52]}
12... bxc6 {[%clk 0:02:58.2]} 13. a5 {[%clk 0:02:51.5]} 13... Rb8 {[%clk
0:02:54.3]} 14. Ra4 {[%clk 0:02:45.8]} 14... Rb4 {[%clk 0:02:53.9]} 15. Na2
{[%clk 0:02:45.8]} 15... Rxa4 {[%clk 0:02:54]} 16. Qxa4 {[%clk 0:02:46.7]} 16...
Qa8 {[%clk 0:02:50.2]} 17. Qxc4 {[%clk 0:02:44.3]} 17... Rb8 {[%clk 0:02:49.4]}
18. Rd3 {[%clk 0:02:36.2]} 18... Rb5 {[%clk 0:02:39.6]} 19. b4 {[%clk
0:02:17.2]} 19... Nd5 {[%clk 0:02:27.2]} 20. Bd2 {[%clk 0:02:15.1]} 20... Qb7
{[%clk 0:02:22.2]} 21. Rb3 {[%clk 0:02:12.1]} 21... c5 {[%clk 0:02:00.4]} 22.
dxc5 {[%clk 0:02:08.5]} 22... Bxc5 {[%clk 0:02:01.3]} 23. e4 {[%clk 0:02:00.2]}
23... Nf6 {[%clk 0:01:58.6]} 24. Rd3 {[%clk 0:01:38.8]} 24... Bf8 {[%clk
0:01:41.8]} 25. f3 {[%clk 0:01:22.1]} 25... c5 {[%clk 0:01:37.3]} 26. Rd8 {[%clk
0:01:08.8]} 26... Qc7 {[%clk 0:01:28]} 27. Qd3 {[%clk 0:01:03.1]} 27... c4
{[%clk 0:01:21.5]} 28. Qd4 {[%clk 0:00:46.9]} 28... e5 {[%clk 0:01:21.2]} 29.
Rxf8+ {[%clk 0:00:44.5]} 29... Kxf8 {[%clk 0:01:22.1]} 30. Qe3 {[%clk 0:00:36]}
30... Qd6 {[%clk 0:01:07]} 31. Bc3 {[%clk 0:00:33.2]} 31... Qd1+ {[%clk
0:01:03]} 32. Kf2 {[%clk 0:00:31.5]} 32... Qc2+ {[%clk 0:00:55.3]} 33. Qe2
{[%clk 0:00:31.7]} 33... Qxe2+ {[%clk 0:00:54.9]} 34. Kxe2 {[%clk 0:00:32.6]}
34... Nd7 {[%clk 0:00:49.4]} 35. Kd2 {[%clk 0:00:30.2]} 35... Rb8 {[%clk
0:00:30.2]} 36. Bb2 {[%clk 0:00:27.4]} 36... Ke7 {[%clk 0:00:29.4]} 37. Kc3
{[%clk 0:00:27.6]} 37... Rc8 {[%clk 0:00:28.8]} 38. Bc1 {[%clk 0:00:27.8]} 38...
Kd6 {[%clk 0:00:26.7]} 39. Be3 {[%clk 0:00:27.1]} 39... f6 {[%clk 0:00:26.7]}
40. Kb2 {[%clk 0:00:19.2]} 40... Nb8 {[%clk 0:00:19.1]} 41. Kc3 {[%clk
0:00:16.6]} 41... Nd7 {[%clk 0:00:13.8]} 42. Nc1 {[%clk 0:00:16.4]} 42... g6
{[%clk 0:00:11]} 43. Ne2 {[%clk 0:00:16.1]} 43... Nf8 {[%clk 0:00:11.1]} 44.
Bc5+ {[%clk 0:00:15.1]} 44... Rxc5 {[%clk 0:00:11]} 45. bxc5+ {[%clk 0:00:15.1]}
45... Kxc5 {[%clk 0:00:11.9]} 46. Kc2 {[%clk 0:00:05.7]} 46... Ne6 {[%clk
0:00:11.8]} 47. Nc3 {[%clk 0:00:03]} 47... Nd4+ {[%clk 0:00:11.3]} 48. Kd2
{[%clk 0:00:03.3]} 48... Nb5 {[%clk 0:00:11.2]} 49. Nd5 {[%clk 0:00:03]} 49...
c3+ {[%clk 0:00:11.1]} 50. Kc2 {[%clk 0:00:02.3]} 50... f5 {[%clk 0:00:10.2]}
51. Nf6 {[%clk 0:00:01.8]} 51... Kb4 {[%clk 0:00:08.4]} 0-1

[Event "*** SCC Grand Prix: Titled Tuesday Blitz"]
[Site "Chess.com"]
[Date "2020.08.25"]
[Round "3"]
[White "Mikhail_Golubev"]
[Black "karwowskikacper"]
[Result "0-1"]
[WhiteElo "2617"]
[BlackElo "2414"]
[TimeControl "180+1"]
[EndTime "10:31:09 PDT"]
[Termination "karwowskikacper won on time"]

1. e4 {[%clk 0:03:00.9]} 1... c5 {[%clk 0:02:59.8]} 2. Nf3 {[%clk 0:03:00.6]}
2... e6 {[%clk 0:03:00.2]} 3. d4 {[%clk 0:03:00.1]} 3... cxd4 {[%clk 0:03:01.1]}
4. Nxd4 {[%clk 0:03:00.5]} 4... Nc6 {[%clk 0:03:01.9]} 5. Nc3 {[%clk 0:03:00.7]}
5... a6 {[%clk 0:03:01.8]} 6. Be3 {[%clk 0:03:00.3]} 6... Qc7 {[%clk 0:03:01.9]}
7. a3 {[%clk 0:02:59.7]} 7... Nf6 {[%clk 0:03:01.8]} 8. f4 {[%clk 0:02:58.9]}
8... h5 {[%clk 0:02:54.2]} 9. Be2 {[%clk 0:02:50.4]} 9... d6 {[%clk 0:02:42.3]}
10. O-O {[%clk 0:02:45.5]} 10... Bd7 {[%clk 0:02:39.6]} 11. Kh1 {[%clk
0:02:30.7]} 11... Nxd4 {[%clk 0:02:28.8]} 12. Bxd4 {[%clk 0:02:15.2]} 12... Bc6
{[%clk 0:02:23]} 13. Bf3 {[%clk 0:02:15.6]} 13... Be7 {[%clk 0:02:14.9]} 14. e5
{[%clk 0:02:04.2]} 14... dxe5 {[%clk 0:01:59.8]} 15. fxe5 {[%clk 0:02:02.5]}
15... Ng4 {[%clk 0:01:46.3]} 16. Bxc6+ {[%clk 0:01:30.2]} 16... Qxc6 {[%clk
0:01:37.8]} 17. Qe2 {[%clk 0:01:24.4]} 17... Nh6 {[%clk 0:01:22.9]} 18. Qxh5
{[%clk 0:00:29.3]} 18... O-O-O {[%clk 0:01:21.4]} 19. Bg1 {[%clk 0:00:28.8]}
19... Nf5 {[%clk 0:01:17.4]} 20. Qf3 {[%clk 0:00:27.9]} 20... Rh4 {[%clk
0:00:43.9]} 21. Qxc6+ {[%clk 0:00:19.9]} 21... bxc6 {[%clk 0:00:44.8]} 22. Rf3
{[%clk 0:00:19.6]} 22... Rdh8 {[%clk 0:00:41.7]} 23. h3 {[%clk 0:00:17.9]} 23...
g5 {[%clk 0:00:41.7]} 24. Bf2 {[%clk 0:00:16.2]} 24... g4 {[%clk 0:00:16]} 25.
Rxf5 {[%clk 0:00:11.7]} 25... exf5 {[%clk 0:00:15.1]} 26. Bxh4 {[%clk
0:00:11.6]} 26... Rxh4 {[%clk 0:00:15.7]} 27. Rf1 {[%clk 0:00:10.5]} 27... gxh3
{[%clk 0:00:15.4]} 28. Rxf5 {[%clk 0:00:09.6]} 28... hxg2+ {[%clk 0:00:13.7]}
29. Kxg2 {[%clk 0:00:09.1]} 29... Rh7 {[%clk 0:00:12.5]} 30. Ne4 {[%clk
0:00:07.2]} 30... Kd7 {[%clk 0:00:13]} 31. Nf6+ {[%clk 0:00:07.2]} 31... Bxf6
{[%clk 0:00:13.3]} 32. Rxf6 {[%clk 0:00:07.8]} 32... a5 {[%clk 0:00:11.5]} 33.
Kf3 {[%clk 0:00:07.9]} 33... Kc7 {[%clk 0:00:09.6]} 34. Ke3 {[%clk 0:00:07.9]}
34... Kb6 {[%clk 0:00:09.8]} 35. Kd3 {[%clk 0:00:07.9]} 35... Kc5 {[%clk
0:00:10.2]} 36. Kd2 {[%clk 0:00:04.9]} 36... a4 {[%clk 0:00:10.1]} 37. Rf5
{[%clk 0:00:03.6]} 37... Kd5 {[%clk 0:00:09.8]} 38. c4+ {[%clk 0:00:02.8]} 38...
Kxc4 {[%clk 0:00:08.1]} 39. Rf4+ {[%clk 0:00:02.9]} 39... Kd5 {[%clk 0:00:07.5]}
40. Rxa4 {[%clk 0:00:02.7]} 40... Kxe5 {[%clk 0:00:08]} 41. Ra5+ {[%clk
0:00:02.9]} 41... Kd4 {[%clk 0:00:07.8]} 42. Rf5 {[%clk 0:00:02.6]} 42... Rh2+
{[%clk 0:00:07.6]} 43. Kc1 {[%clk 0:00:02.8]} 43... Kd3 {[%clk 0:00:08]} 44.
Rf3+ {[%clk 0:00:03]} 44... Kc4 {[%clk 0:00:08]} 45. Rxf7 {[%clk 0:00:03.6]}
45... Kb3 {[%clk 0:00:08.2]} 46. Rb7+ {[%clk 0:00:03.6]} 46... Ka2 {[%clk
0:00:06.9]} 47. a4 {[%clk 0:00:03.3]} 47... Rh4 {[%clk 0:00:05.2]} 48. a5 {[%clk
0:00:03.1]} 48... Ra4 {[%clk 0:00:05.2]} 49. b4 {[%clk 0:00:03.6]} 49... Kb3
{[%clk 0:00:04.9]} 50. Rb6 {[%clk 0:00:03.5]} 50... Kc4 {[%clk 0:00:03.8]} 51.
Kd2 {[%clk 0:00:03.4]} 51... c5 {[%clk 0:00:01.9]} 0-1

[Event "*** SCC Grand Prix: Titled Tuesday Blitz"]
[Site "Chess.com"]
[Date "2020.08.25"]
[Round "3"]
[White "Misticpikachu"]
[Black "Larina_Marija"]
[Result "1-0"]
[WhiteElo "2309"]
[BlackElo "2092"]
[TimeControl "180+1"]
[EndTime "10:31:09 PDT"]
[Termination "Misticpikachu won by checkmate"]

1. c4 {[%clk 0:03:00.9]} 1... f5 {[%clk 0:02:58.8]} 2. Nc3 {[%clk 0:02:55.1]}
2... Nf6 {[%clk 0:02:58.6]} 3. g3 {[%clk 0:02:54.8]} 3... g6 {[%clk 0:02:58.4]}
4. Bg2 {[%clk 0:02:55.3]} 4... Bg7 {[%clk 0:02:58.6]} 5. Nf3 {[%clk 0:02:56.2]}
5... d6 {[%clk 0:02:58.6]} 6. O-O {[%clk 0:02:56.9]} 6... O-O {[%clk 0:02:58.8]}
7. d4 {[%clk 0:02:57.4]} 7... Nc6 {[%clk 0:02:58.3]} 8. b3 {[%clk 0:02:57.6]}
8... e5 {[%clk 0:02:57.2]} 9. dxe5 {[%clk 0:02:57.2]} 9... dxe5 {[%clk
0:02:58.1]} 10. Bb2 {[%clk 0:02:57]} 10... e4 {[%clk 0:02:56]} 11. Ng5 {[%clk
0:02:54.5]} 11... h6 {[%clk 0:02:52.4]} 12. Nh3 {[%clk 0:02:53.9]} 12... g5
{[%clk 0:02:39.1]} 13. f3 {[%clk 0:02:49.9]} 13... Qe8 {[%clk 0:02:26.6]} 14.
fxe4 {[%clk 0:02:47.7]} 14... Nxe4 {[%clk 0:02:20.3]} 15. Nxe4 {[%clk
0:02:39.9]} 15... Bxb2 {[%clk 0:02:17.8]} 16. Nc5 {[%clk 0:02:06]} 16... Qe3+
{[%clk 0:02:08.6]} 17. Kh1 {[%clk 0:02:03.5]} 17... Qxc5 {[%clk 0:02:08.1]} 18.
Bd5+ {[%clk 0:02:01]} 18... Kg7 {[%clk 0:01:58]} 19. Rb1 {[%clk 0:02:00.5]}
19... Qd4 {[%clk 0:01:50.3]} 20. Qc2 {[%clk 0:01:55.8]} 20... Ba3 {[%clk
0:01:45.2]} 21. Rbd1 {[%clk 0:01:44.8]} 21... Qe5 {[%clk 0:01:35]} 22. e4 {[%clk
0:01:31.1]} 22... Nb4 {[%clk 0:01:26.5]} 23. Qf2 {[%clk 0:01:24.8]} 23... Nxd5
{[%clk 0:01:24.9]} 24. exd5 {[%clk 0:01:18.6]} 24... b6 {[%clk 0:01:18.5]} 25.
Rde1 {[%clk 0:01:18]} 25... Qf6 {[%clk 0:01:16]} 26. Qd2 {[%clk 0:01:08.6]}
26... Bd6 {[%clk 0:01:12.7]} 27. Nf2 {[%clk 0:01:06.4]} 27... Qg6 {[%clk
0:01:07]} 28. Qd4+ {[%clk 0:01:03.5]} 28... Kh7 {[%clk 0:01:04.9]} 29. Nd3
{[%clk 0:01:01]} 29... Bd7 {[%clk 0:01:02.9]} 30. c5 {[%clk 0:00:48.4]} 30...
bxc5 {[%clk 0:01:00.3]} 31. Nxc5 {[%clk 0:00:49.3]} 31... Bxc5 {[%clk
0:00:59.2]} 32. Qxc5 {[%clk 0:00:50.2]} 32... Qd6 {[%clk 0:00:56.9]} 33. Re7+
{[%clk 0:00:48]} 33... Kg6 {[%clk 0:00:52.5]} 34. Qxd6+ {[%clk 0:00:47.2]} 34...
cxd6 {[%clk 0:00:53.1]} 35. Rxd7 {[%clk 0:00:48.1]} 35... Rf6 {[%clk 0:00:52.6]}
36. Rc1 {[%clk 0:00:46.3]} 36... f4 {[%clk 0:00:50]} 37. gxf4 {[%clk 0:00:45.7]}
37... gxf4 {[%clk 0:00:50.2]} 38. Kg2 {[%clk 0:00:44.8]} 38... f3+ {[%clk
0:00:49.2]} 39. Kf2 {[%clk 0:00:44.8]} 39... Re8 {[%clk 0:00:49]} 40. Re1 {[%clk
0:00:44.4]} 40... Rxe1 {[%clk 0:00:46]} 41. Kxe1 {[%clk 0:00:45.3]} 41... f2+
{[%clk 0:00:45.4]} 42. Kf1 {[%clk 0:00:45.6]} 42... a5 {[%clk 0:00:45]} 43. Ra7
{[%clk 0:00:32.8]} 43... Kg5 {[%clk 0:00:44.3]} 44. Rxa5 {[%clk 0:00:32.6]}
44... Kg4 {[%clk 0:00:42.7]} 45. Ra4+ {[%clk 0:00:17.3]} 45... Kf3 {[%clk
0:00:40.9]} 46. Rh4 {[%clk 0:00:14]} 46... Rg6 {[%clk 0:00:38.8]} 47. Rh3+
{[%clk 0:00:14.1]} 47... Kg4 {[%clk 0:00:38.8]} 48. Rg3+ {[%clk 0:00:13.8]}
48... Kf5 {[%clk 0:00:38.5]} 49. Rxg6 {[%clk 0:00:14.7]} 49... Kxg6 {[%clk
0:00:38.8]} 50. Kxf2 {[%clk 0:00:15.6]} 50... Kf5 {[%clk 0:00:39.4]} 51. a4
{[%clk 0:00:16.5]} 51... Ke4 {[%clk 0:00:40.1]} 52. a5 {[%clk 0:00:17.4]} 52...
Kxd5 {[%clk 0:00:40.7]} 53. Ke3 {[%clk 0:00:17.6]} 53... Kc6 {[%clk 0:00:41.6]}
54. Kd4 {[%clk 0:00:18]} 54... Kb5 {[%clk 0:00:42.5]} 55. Kd5 {[%clk 0:00:18.9]}
55... Kxa5 {[%clk 0:00:43.4]} 56. Kxd6 {[%clk 0:00:12.2]} 56... Kb4 {[%clk
0:00:44.3]} 57. Ke6 {[%clk 0:00:11.4]} 57... Kxb3 {[%clk 0:00:45.2]} 58. Kf6
{[%clk 0:00:12.3]} 58... Kc4 {[%clk 0:00:46.1]} 59. Kg6 {[%clk 0:00:13.2]} 59...
Kd5 {[%clk 0:00:47]} 60. Kxh6 {[%clk 0:00:13.5]} 60... Ke6 {[%clk 0:00:47.9]}
61. Kg6 {[%clk 0:00:13.9]} 61... Ke7 {[%clk 0:00:47.4]} 62. Kg7 {[%clk
0:00:14.2]} 62... Ke8 {[%clk 0:00:47.5]} 63. h4 {[%clk 0:00:14.4]} 63... Ke7
{[%clk 0:00:48.2]} 64. h5 {[%clk 0:00:15.3]} 64... Ke6 {[%clk 0:00:49.1]} 65. h6
{[%clk 0:00:16.2]} 65... Ke7 {[%clk 0:00:50]} 66. h7 {[%clk 0:00:17.1]} 66...
Ke6 {[%clk 0:00:50.9]} 67. h8=Q {[%clk 0:00:18]} 67... Ke7 {[%clk 0:00:51.8]}
68. Qh6 {[%clk 0:00:18.7]} 68... Ke8 {[%clk 0:00:51.5]} 69. Qb6 {[%clk
0:00:13.8]} 69... Ke7 {[%clk 0:00:52.4]} 70. Qc6 {[%clk 0:00:13.5]} 70... Kd8
{[%clk 0:00:52.2]} 71. Qb7 {[%clk 0:00:13.6]} 71... Ke8 {[%clk 0:00:51.9]} 72.
Kf6 {[%clk 0:00:13.8]} 72... Kf8 {[%clk 0:00:51.9]} 73. Qf7# {[%clk 0:00:12.4]}
1-0

[Event "*** SCC Grand Prix: Titled Tuesday Blitz"]
[Site "Chess.com"]
[Date "2020.08.25"]
[Round "3"]
[White "anon481216"]
[Black "Andreikka"]
[Result "0-1"]
[WhiteElo "2441"]
[BlackElo "2834"]
[TimeControl "180+1"]
[EndTime "10:31:10 PDT"]
[Termination "Andreikka won by resignation"]

1. d4 {[%clk 0:03:00.9]} 1... Nf6 {[%clk 0:02:58.4]} 2. c4 {[%clk 0:02:59.5]}
2... e6 {[%clk 0:02:57.1]} 3. Nf3 {[%clk 0:02:58.7]} 3... d5 {[%clk 0:02:55.6]}
4. Nc3 {[%clk 0:02:58.1]} 4... a6 {[%clk 0:02:55.4]} 5. cxd5 {[%clk 0:02:56.8]}
5... exd5 {[%clk 0:02:56.3]} 6. Bg5 {[%clk 0:02:57.1]} 6... Be6 {[%clk
0:02:54.1]} 7. e3 {[%clk 0:02:56.5]} 7... Nbd7 {[%clk 0:02:53.6]} 8. Bd3 {[%clk
0:02:51]} 8... Bd6 {[%clk 0:02:51.3]} 9. O-O {[%clk 0:02:46.9]} 9... c6 {[%clk
0:02:51.3]} 10. Bh4 {[%clk 0:02:42.3]} 10... h6 {[%clk 0:02:50.9]} 11. Bg3
{[%clk 0:02:42.4]} 11... Qb8 {[%clk 0:02:40.4]} 12. Rc1 {[%clk 0:02:36.5]} 12...
O-O {[%clk 0:02:39.2]} 13. Na4 {[%clk 0:02:34.8]} 13... Bxg3 {[%clk 0:02:34.3]}
14. hxg3 {[%clk 0:02:34.4]} 14... Qd6 {[%clk 0:02:34.5]} 15. Nc5 {[%clk
0:02:30.5]} 15... Nxc5 {[%clk 0:02:34.3]} 16. dxc5 {[%clk 0:02:30.3]} 16... Qe7
{[%clk 0:02:34.6]} 17. Nd4 {[%clk 0:02:29.8]} 17... Bd7 {[%clk 0:02:34.9]} 18.
b4 {[%clk 0:02:27.4]} 18... Qe5 {[%clk 0:02:30.5]} 19. Qc2 {[%clk 0:02:23.2]}
19... g6 {[%clk 0:02:26.2]} 20. Rfe1 {[%clk 0:02:15.1]} 20... Rae8 {[%clk
0:02:25.9]} 21. a4 {[%clk 0:02:10.2]} 21... Ng4 {[%clk 0:02:25.1]} 22. Qb2
{[%clk 0:01:46.7]} 22... Qh5 {[%clk 0:02:24.2]} 23. Nf3 {[%clk 0:01:46.1]} 23...
Re6 {[%clk 0:02:19.9]} 24. Qd4 {[%clk 0:01:41.9]} 24... Rf6 {[%clk 0:02:19.1]}
25. Be2 {[%clk 0:01:17]} 25... Re8 {[%clk 0:02:15.1]} 26. Nh4 {[%clk 0:00:58.8]}
26... Kg7 {[%clk 0:01:45.2]} 27. Bxg4 {[%clk 0:00:54]} 27... Bxg4 {[%clk
0:01:43.5]} 28. b5 {[%clk 0:00:48.9]} 28... axb5 {[%clk 0:01:42.9]} 29. axb5
{[%clk 0:00:48.8]} 29... cxb5 {[%clk 0:01:43.1]} 30. c6 {[%clk 0:00:46.7]} 30...
bxc6 {[%clk 0:01:34.9]} 31. Rxc6 {[%clk 0:00:46.1]} 31... Qe5 {[%clk 0:01:35.8]}
32. Qxe5 {[%clk 0:00:31.6]} 32... Rxe5 {[%clk 0:01:35.3]} 33. Rxf6 {[%clk
0:00:31]} 33... Kxf6 {[%clk 0:01:36.2]} 34. Rb1 {[%clk 0:00:31.2]} 34... Bd7
{[%clk 0:01:36.4]} 35. Nf3 {[%clk 0:00:31.3]} 35... Re8 {[%clk 0:01:37.3]} 36.
Nd4 {[%clk 0:00:31.4]} 36... Rb8 {[%clk 0:01:38.2]} 37. Nc2 {[%clk 0:00:29.8]}
37... Bf5 {[%clk 0:01:36.6]} 38. Rb2 {[%clk 0:00:30]} 38... Bxc2 {[%clk
0:01:36.5]} 39. Rxc2 {[%clk 0:00:30.5]} 39... b4 {[%clk 0:01:37.4]} 40. Rb2
{[%clk 0:00:30.9]} 40... b3 {[%clk 0:01:37.9]} 41. Kf1 {[%clk 0:00:31.3]} 41...
Ke5 {[%clk 0:01:38.6]} 42. Ke2 {[%clk 0:00:31.7]} 42... d4 {[%clk 0:01:39.4]}
43. Kd3 {[%clk 0:00:31.2]} 43... dxe3 {[%clk 0:01:39.8]} 44. Kxe3 {[%clk
0:00:31.5]} 44... h5 {[%clk 0:01:39.1]} 45. Kd3 {[%clk 0:00:30.6]} 45... Rd8+
{[%clk 0:00:44.3]} 46. Kc3 {[%clk 0:00:29.7]} 46... Rd1 {[%clk 0:00:44.9]} 47.
Rxb3 {[%clk 0:00:27.4]} 47... Rg1 {[%clk 0:00:45.3]} 48. Kd3 {[%clk 0:00:27.3]}
48... Rxg2 {[%clk 0:00:45]} 49. Ke3 {[%clk 0:00:27.6]} 49... Rg1 {[%clk
0:00:44.7]} 50. Rb5+ {[%clk 0:00:27.2]} 50... Kf6 {[%clk 0:00:44.7]} 51. Rb6+
{[%clk 0:00:26.6]} 51... Kg5 {[%clk 0:00:44.9]} 52. Rb5+ {[%clk 0:00:27]} 52...
Kg4 {[%clk 0:00:44.9]} 53. Ke2 {[%clk 0:00:21.8]} 53... Ra1 {[%clk 0:00:41.4]}
54. Rb7 {[%clk 0:00:19.4]} 54... f5 {[%clk 0:00:37.3]} 55. Rb4+ {[%clk
0:00:19.2]} 55... Kh3 {[%clk 0:00:36.9]} 56. Rb6 {[%clk 0:00:17.9]} 56... g5
{[%clk 0:00:37.3]} 57. Rg6 {[%clk 0:00:17.3]} 57... Ra2+ {[%clk 0:00:18.9]} 58.
Kf3 {[%clk 0:00:14.9]} 58... g4+ {[%clk 0:00:18.4]} 59. Ke3 {[%clk 0:00:14.6]}
59... Kg2 {[%clk 0:00:18.4]} 60. Rg5 {[%clk 0:00:12.8]} 60... Rxf2 {[%clk
0:00:18.6]} 61. Rxh5 {[%clk 0:00:13.2]} 61... Kxg3 {[%clk 0:00:19.1]} 62. Rh1
{[%clk 0:00:12.4]} 62... f4+ {[%clk 0:00:19.3]} 63. Ke4 {[%clk 0:00:12.3]} 63...
Re2+ {[%clk 0:00:19.2]} 64. Kd3 {[%clk 0:00:12.1]} 64... f3 {[%clk 0:00:19.7]}
0-1